[Event "44th Chess Olympiad Open 2022"]
[Site "Chennai"]
[Date "2022.08.08"]
[Round "10.2"]
[White "Hovhannisyan, Robert"]
[Black "Abasov, Nijat"]
[Result "1-0"]
[WhiteElo "2591"]
[BlackElo "2633"]
[Annotator "RC"]
[PlyCount "101"]
[EventDate "2022.??.??"]
[TimeControl "60"]

1. e4 {[%emt 0:00:03]} e5 {[%emt 0:00:23]} 2. Nf3 {[%emt 0:00:09]} Nc6 {
[%emt 0:00:09]} 3. Bb5 {[%emt 0:00:08]} a6 {[%emt 0:00:17]} 4. Ba4 {[%emt 0:00:
00]} Nf6 {[%emt 0:00:07]} 5. O-O {[%emt 0:00:06]} b5 {[%emt 0:00:25]} 6. Bb3 {
[%emt 0:00:06]} Bc5 {[%emt 0:00:09]} 7. a4 {[%emt 0:00:28]} Rb8 {[%emt 0:00:46]
} 8. Nxe5 {[%emt 0:01:04]} Nxe5 {[%emt 0:00:15]} 9. d4 {[%emt 0:00:05]} Bxd4 {
[%emt 0:00:14]} 10. Qxd4 {[%emt 0:00:05]} d6 {[%emt 0:00:08]} 11. f4 {[%emt 0:
00:00]} Nc6 {[%emt 0:00:18]} 12. Qd3 {[%emt 0:00:56]} O-O {[%emt 0:02:43]} 13.
Nc3 {[%emt 0:00:31]} Nb4 {[%emt 0:19:15]} 14. Qd2 {[%emt 0:00:42]} Qe7 {
[%emt 0:04:52]} 15. axb5 {[%emt 0:08:42]} axb5 {[%emt 0:01:01]} 16. e5 {
[%emt 0:03:02]} dxe5 {[%emt 0:02:46]} 17. fxe5 {[%emt 0:00:12]} Qxe5 {[%emt 0:
00:00]} 18. Qf4 {[%emt 0:00:48]} Qxf4 {[%emt 0:17:44]} 19. Bxf4 {[%emt 0:01:28]
} Na6 {[%emt 0:00:08]} 20. Ra5 {[%emt 0:15:35]} b4 {[%emt 0:00:54]} 21. Nd5 {
[%emt 0:08:04]} Nxd5 {[%emt 0:02:11]} 22. Bxd5 {[%emt 0:00:08]} Rb6 {[%emt 0:
00:00]} 23. Rfa1 {[%emt 0:12:04]} h6 {[%emt 0:02:34]} 24. b3 {[%emt 0:04:18]}
Rf6 {[%emt 0:10:36]} 25. Be5 {[%emt 0:06:10]} Rf5 {[%emt 0:03:01]} 26. Be4 {
[%emt 0:09:16]} Rg5 {[%emt 0:00:40]} 27. h4 {[%emt 0:01:33]} Rh5 {[%emt 0:00:
00]} 28. Bf3 {[%emt 0:04:23]} Rxh4 {[%emt 0:00:07]} 29. Rxa6 {[%emt 0:01:52]}
Bxa6 {[%emt 0:00:07]} 30. Rxa6 {[%emt 0:00:04]} Re8 {[%emt 0:00:08]} 31. g3 {
[%emt 0:01:38]} Rxe5 {[%emt 0:00:39]} 32. gxh4 {[%emt 0:00:04]} c5 {[%emt 0:00:
00]} 33. h5 {[%emt 0:03:48]} Kf8 {[%emt 0:00:10]} 34. Kf2 {[%emt 0:02:21]} Ke7
{[%emt 0:00:58]} 35. Be2 {[%emt 0:00:25]} Rg5 {[%emt 0:01:30]} 36. Ke3 {
[%emt 0:00:47]} g6 {[%emt 0:00:04]} 37. Kf4 {[%emt 0:02:58]} Rf5+ {[%emt 0:00:
00]} 38. Ke4 {[%emt 0:00:14]} Rg5 {[%emt 0:00:02]} 39. Rb6 {[%emt 0:02:53]} Rg2
{[%emt 0:01:45]} 40. Bc4 {[%emt 0:00:45]} Rg4+ {[%emt 0:01:12]} 41. Kf3 {
[%emt 0:30:21]} Rg5 {[%emt 0:30:07]} 42. Rb7+ {[%emt 0:00:52]} Kd6 {[%emt 0:00:
00]} 43. Rxf7 {[%emt 0:00:29]} Rxh5 {[%emt 0:01:57]} 44. Rf6+ {[%emt 0:00:26]}
Ke5 {[%emt 0:00:04]} 45. Rxg6 {[%emt 0:00:09]} Kd4 {[%emt 0:00:06]} 46. Rg3 {
[%emt 0:00:43]} Rh2 {[%emt 0:00:14]} 47. Kf4 {[%emt 0:00:51]} Rh4+ {[%emt 0:00:
00]} 48. Kf5 {[%emt 0:00:24]} Rh5+ {[%emt 0:00:03]} 49. Ke6 {[%emt 0:00:34]}
Rh2 {[%emt 0:01:49]} 50. Rd3+ {[%emt 0:00:36]} Ke4 {[%emt 0:00:06]} 51. Kd6 {
[%emt 0:01:27]} 1-0

[Event "44th Chess Olympiad Open 2022"]
[Site "Chennai"]
[Date "2022.08.08"]
[Round "10.3"]
[White "Caruana, Fabiano"]
[Black "Yilmaz, Mustafa"]
[Result "1-0"]
[WhiteElo "2783"]
[BlackElo "2634"]
[Annotator "TA"]
[PlyCount "55"]
[EventDate "2022.??.??"]
[TimeControl "60"]

{[%evp 23,55,26,18,28,20,0,0,7,0,0,18,37,22,0,66,92,60,97,106,110,102,108,241,
248,231,234,450,442,723,718,721,718,901,873]} 1. e4 {[%emt 0:00:03]} c5 {
[%emt 0:00:04]} 2. Nf3 {[%emt 0:00:03]} d6 {[%emt 0:00:04]} 3. d4 {[%emt 0:00:
00]} cxd4 {[%emt 0:00:03]} 4. Nxd4 {[%emt 0:00:04]} Nf6 {[%emt 0:00:05]} 5. Nc3
{[%emt 0:00:03]} a6 {[%emt 0:00:04]} 6. f3 {[%emt 0:00:03]} e5 {[%emt 0:00:33]}
7. Nb3 {[%emt 0:00:06]} Be6 {[%emt 0:00:21]} 8. Be3 {[%emt 0:00:06]} Be7 {
[%emt 0:00:04]} 9. Qd2 {[%emt 0:00:15]} O-O {[%emt 0:00:23]} 10. O-O-O {
[%emt 0:00:10]} Nbd7 {[%emt 0:00:07]} 11. g4 {[%emt 0:00:06][%cal Yg2g4,Yg4g5]}
b5 {[%emt 0:00:04]} 12. g5 {[%emt 0:00:08]} Nh5 {[%emt 0:00:07] is now more
promising than 12...b4.} 13. Kb1 {[%emt 0:00:40] B90: Sicilian Najdorf:
Unusual White 6th moves, 6 Be3 Ng4 and 6 Be3 e5.} Nb6 {[%emt 0:00:47]} 14. Qf2
{[%emt 0:01:43]} Nc4 {[%emt 0:01:35]} 15. Bxc4 {[%emt 0:01:12] The position is
equal.} bxc4 {[%emt 0:00:08]} 16. Na5 {[%emt 0:00:04][%cal Yb3a5,Ya5c6,Yc6e5,
Ye5d7,Yd7f8] [#]} Rc8 $146 {[%emt 0:14:49] Against Nc6} (16... Qxa5 $2 17. Bb6
Qb4 18. a3 Qxc3 19. bxc3 $18) ({Predecessor:} 16... Bxg5 17. Bxg5 Qxa5 18. Rxd6
Rab8 19. Nd5 c3 20. Bc1 Bxd5 21. Rxd5 Rxb2+ 22. Bxb2 Qb4 23. Kc1 Qxb2+ 24. Kd1
Qb1+ 25. Ke2 Nf4+ {0-1 (25) Pekacki,S (2079)-Olejarczyk, B (2223) Warsaw 2007})
17. Nd5 $1 {[%emt 0:00:19]} Bxd5 {[%emt 0:07:01]} 18. Rxd5 {[%emt 0:00:06]}
Bxg5 {[%emt 0:21:46]} (18... f6 $11) 19. Bxg5 $14 {[%emt 0:04:38]} Qxg5 {
[%emt 0:00:07]} 20. Rxd6 {[%emt 0:00:11]} f5 {[%emt 0:00:00] [#]} 21. Nc6 $1 {
[%emt 0:22:17] Hoping for Rg1.} (21. Rxa6 $2 fxe4 22. Rc6 Rxc6 23. Nxc6 exf3
$19) 21... Rce8 {[%emt 0:07:53] White must now prevent ... fxe4.} 22. Qc5 {
[%emt 0:05:58][%csl Yc4,Ye5] White is more active.} Kh8 {[%emt 0:14:32] This
costs Black the game.} (22... Qf4 $16 {was called for.}) 23. Nxe5 $18 {[%emt 0:
09:29]} (23. Qxc4 Qg2 24. Re1 Qxf3 $14) 23... Qf4 {[%emt 0:04:38]} 24. Nd7 {
[%emt 0:01:34]} ({Resist} 24. Nxc4 $6 Qxf3 25. Re1 Nf6 $16) 24... Qxf3 $2 {
[%emt 0:04:27]} (24... Rg8 {keeps fighting.} 25. Rhd1 (25. exf5 c3 $16) (25.
Rxa6 Qxf3 26. Rc1 Qxe4 $16) 25... fxe4) 25. Rc1 {[%emt 0:00:00] White is
clearly winning.} Nf6 {[%emt 0:06:51]} (25... Rg8 $142 26. Ne5 (26. Qxf5 Qxf5
27. exf5 Re2 $16) (26. Qxc4 Qxe4 27. Qxa6 f4 $14) (26. exf5 c3 $16) (26. Rxa6
fxe4 27. Ra5 Nf4 $16) 26... Rxe5 27. Qxe5 fxe4 28. Rxa6 Nf6) 26. Nxf8 {[%emt 0:
09:10]} Nxe4 {[%emt 0:00:13] [#]} 27. Re6 $1 {[%emt 0:01:30][%cal Ye6e8]} Rb8 {
[%emt 0:08:38] [#]} (27... Nxc5 28. Rxe8) 28. Qe5 $1 {[%emt 0:03:31] Weighted
Error Value: White=0.01 (flawless) /Black=0.44} 1-0

[Event "44th Chess Olympiad Open 2022"]
[Site "Chennai"]
[Date "2022.08.08"]
[Round "10.3"]
[White "Dominguez Perez, Leinier"]
[Black "Sanal, Vahap"]
[Result "1-0"]
[WhiteElo "2754"]
[BlackElo "2574"]
[Annotator "TA"]
[PlyCount "81"]
[EventDate "2022.??.??"]
[TimeControl "60"]

{[%evp 26,81,36,30,31,41,77,91,94,102,137,129,146,136,135,136,138,139,189,127,
228,241,230,204,213,174,215,0,0,0,139,125,250,239,216,223,273,215,208,202,185,
177,234,239,245,243,239,239,406,395,614,386,375,368,494,330,602,583]} 1. e4 {
[%emt 0:00:04]} e5 {[%emt 0:00:08]} 2. Nf3 {[%emt 0:00:06]} Nc6 {[%emt 0:00:11]
} 3. Bb5 {[%emt 0:00:47]} a6 {[%emt 0:00:21]} 4. Ba4 {[%emt 0:00:06]} Nf6 {
[%emt 0:00:11]} 5. O-O {[%emt 0:00:09]} Be7 {[%emt 0:00:42]} 6. Re1 {[%emt 0:
00:00]} b5 {[%emt 0:00:07]} 7. Bb3 {[%emt 0:00:05]} O-O {[%emt 0:00:09]} 8. c3
{[%emt 0:00:03]} d5 {[%emt 0:00:50]} 9. exd5 {[%emt 0:00:07]} Nxd5 {[%emt 0:00:
00]} 10. Nxe5 {[%emt 0:00:04]} Nxe5 {[%emt 0:00:09]} 11. Rxe5 {[%emt 0:00:08]}
c6 {[%emt 0:00:06]} 12. d3 {[%emt 0:00:11]} Bd6 {[%emt 0:00:22]} 13. Re1 {
[%emt 0:00:08]} Bf5 {[%emt 0:00:17]} 14. Qf3 {[%emt 0:00:10]} Bg6 {[%emt 0:00:
00] C89: Closed Ruy Lopez: Marshall Attack.} 15. g3 $5 {[%emt 0:01:24] [#] An
interesting side line.} (15. Na3 {is more complex.} Bxa3 16. bxa3 Nxc3 17. Bd2)
15... Kh8 $146 {[%emt 0:30:05]} ({Predecessor:} 15... Re8 16. Rxe8+ Qxe8 17.
Nd2 Qe1+ 18. Nf1 Re8 19. Bd1 a5 20. Bd2 Qe5 21. a4 b4 22. Bb3 {1-0 (38) Saric,
I (2646)-Adams,M (2701) Chess.com INT 2020}) 16. Bxd5 {[%emt 0:00:00]} cxd5 {
[%emt 0:00:26] White is better.} 17. Qxd5 {[%emt 0:00:06]} f5 {[%emt 0:10:09]}
18. Nd2 {[%emt 0:07:44]} Qc7 {[%emt 0:02:04]} 19. Nf3 {[%emt 0:00:00]} f4 {
[%emt 0:09:53][%cal Rf4g3]} 20. Nh4 $1 {[%emt 0:00:15]} Bf7 {[%emt 0:19:33]
Prevents Re6.} 21. Qg5 {[%emt 0:00:14][%cal Rc1f4]} h6 {[%emt 0:00:00]} (21...
Bg8 $16 {was worth a try.} 22. Re4 fxg3 23. hxg3 Rae8) 22. Ng6+ {[%emt 0:10:03]
} ({White should play} 22. Qg4 $1 $18) 22... Kh7 {[%emt 0:21:01]} (22... Bxg6
$16 23. Qxg6 Rf6) 23. Nxf8+ $18 {[%emt 0:00:08]} Rxf8 {[%emt 0:00:00]} 24. Qg4
{[%emt 0:04:53][%cal Rc1f4]} Bd5 {[%emt 0:00:02]} 25. Bd2 {[%emt 0:11:37]} Rf6
{[%emt 0:00:06]} 26. Re4 $2 {[%emt 0:00:05]} Bxe4 $11 {[%emt 0:01:45]} 27. dxe4
{[%emt 0:00:01]} Qc4 {[%emt 0:03:12]} (27... Qa7 $11 {remains equal.} 28. e5 (
28. gxf4 $2 Rg6 $19) (28. Bxf4 Bxf4 29. Qe2 Bc7 $15) 28... Bxe5) 28. Re1 $16 {
[%emt 0:02:13]} ({But not} 28. gxf4 $2 Rg6 29. Qxg6+ Kxg6 $19) ({Stronger than
} 28. Bxf4 Bxf4 29. Re1 (29. gxf4 $2 Rg6 $19) 29... Bd6 $17) 28... f3 {[%emt 0:
00:01] Inhibits Qe2.} (28... Be5 $16 {was necessary.}) 29. Be3 $18 {[%emt 0:04:
03]} Be5 {[%emt 0:01:02]} 30. a3 {[%emt 0:01:36]} Qd3 {[%emt 0:00:15]} 31. Qh5
{[%emt 0:02:18]} Qd6 {[%emt 0:00:54]} 32. Qh3 {[%emt 0:08:15]} Qd3 {[%emt 0:00:
02]} 33. Qf1 {[%emt 0:00:26]} Qc2 {[%emt 0:00:00] [#]} (33... Qd8 {was called
for.} 34. Qh3 Qd6) 34. Bd4 $1 {[%emt 0:00:16]} Re6 {[%emt 0:01:06] [#]} 35. Qh3
$1 {[%emt 0:00:57]} (35. Bxe5 Rxe5 36. b4 Rxe4 $14) 35... Bxd4 {[%emt 0:00:43]}
36. cxd4 {[%emt 0:01:01] KQR-KQR} Rf6 {[%emt 0:00:27]} (36... Qd2 37. Rf1 Rg6)
37. e5 {[%emt 0:00:31][%cal Ye4e5,Ye5e6]} Rf8 {[%emt 0:00:33]} (37... Qd2 $142
38. Rf1 (38. exf6 Qxe1+ 39. Qf1 Qe4 $18) 38... Rg6) 38. Qf1 {[%emt 0:01:31]}
Qd2 {[%emt 0:00:16]} 39. Rd1 {[%emt 0:01:19]} Qxb2 {[%emt 0:00:05]} 40. Qd3+ {
[%emt 0:00:11]} Kh8 $2 {[%emt 0:00:39]} (40... Kg8 41. Kf1 Rd8 42. Qxf3 Rxd4)
41. e6 {[%emt 0:30:40] Weighted Error Value: White=0.28 (precise) /Black=0.59}
1-0

[Event "44th Chess Olympiad Open 2022"]
[Site "Chennai"]
[Date "2022.08.08"]
[Round "10.3"]
[White "Can, Emre"]
[Black "So, Wesley"]
[Result "1/2-1/2"]
[WhiteElo "2606"]
[BlackElo "2773"]
[Annotator "TA"]
[PlyCount "63"]
[EventDate "2022.??.??"]
[TimeControl "60"]

{[%evp 15,63,17,19,10,14,0,0,0,0,0,0,0,0,0,0,0,0,0,0,0,0,0,0,0,0,0,2,0,0,4,24,
21,33,0,0,3,0,0,0,0,0,0,0,4,12,0,0,0,0,0]} 1. d4 {[%emt 0:00:07]} Nf6 {[%emt 0:
00:00]} 2. c4 {[%emt 0:00:27]} e6 {[%emt 0:00:10]} 3. g3 {[%emt 0:00:20]} d5 {
[%emt 0:00:14]} 4. Bg2 {[%emt 0:00:17]} Be7 {[%emt 0:00:06]} 5. Nf3 {[%emt 0:
00:00]} O-O {[%emt 0:00:06]} 6. O-O {[%emt 0:00:18]} dxc4 {[%emt 0:00:06]} 7.
Qc2 {[%emt 0:00:49]} a6 {[%emt 0:00:05]} 8. a4 {[%emt 0:00:13]} Bd7 {[%emt 0:
00:00]} 9. Rd1 {[%emt 0:00:57] E05: Open Catalan: 5 Nf3 Be7.} Bc6 {[%emt 0:00:
00]} 10. Bg5 $1 {[%emt 0:00:18] now scores much better than the old 10. Nc3.}
b5 {[%emt 0:09:26]} 11. Bxf6 {[%emt 0:01:38]} Bxf6 {[%emt 0:03:38]} ({Don't
play} 11... gxf6 12. d5 exd5 13. Nc3 $16) 12. Nc3 {[%emt 0:00:17]} Qe8 {
[%emt 0:00:10]} 13. d5 {[%emt 0:01:00]} exd5 {[%emt 0:02:04]} 14. Nd4 $1 {
[%emt 0:00:17]} Qe5 {[%emt 0:02:55]} 15. e4 {[%emt 0:00:32]} dxe4 {[%emt 0:00:
00]} 16. Nxe4 {[%emt 0:00:50] Pair of Knights!} Ra7 {[%emt 0:07:57] ...Bxe4 is
the strong threat.} (16... bxa4 $2 17. Nxc6 Nxc6 18. Qxc4 $18 (18. Qxa4 Nd4 $16
)) 17. Nxf6+ {[%emt 0:07:51]} (17. axb5 {keeps more tension.} Bxe4 18. Qxe4
Qxe4 19. Bxe4 Rd8 20. Nc6) 17... Qxf6 {[%emt 0:00:05]} 18. axb5 {[%emt 0:00:30]
} Bxg2 {[%emt 0:00:07]} 19. Kxg2 {[%emt 0:00:07]} Rb7 {[%emt 0:06:06]} 20. bxa6
{[%emt 0:00:16]} Nxa6 {[%emt 0:00:24] [#]} 21. Ra3 $146 {[%emt 0:00:10]} ({
Predecessor:} 21. Ra4 c5 22. Qxc4 Rxb2 23. Nf3 Nc7 24. Qxc5 Ne6 25. Qe5 Qxe5
26. Nxe5 Re2 27. Nf3 {½-½ (40) Kukhmazov,A (2490)-Lintchevski,D (2556)
Moscow 2022}) 21... g6 {[%emt 0:11:59]} 22. Rf3 {[%emt 0:00:51]} Qb6 {[%emt 0:
00:00]} 23. Qxc4 {[%emt 0:05:03] [#] Threatens to win with Nc6.} c5 {[%emt 0:
00:00]} 24. Ne2 {[%emt 0:04:44] And now Nc3 would win.} (24. Rb3 $5 {[%cal
Rb3b6]} Nb4 25. Nf3 $11) 24... Qb5 {[%emt 0:02:25] The position is equal.} (
24... Qc6 {feels hotter.} 25. Nf4 Nc7 26. h4 Rxb2 27. Nd3 Rbb8) 25. Qxb5 {
[%emt 0:09:09]} Rxb5 {[%emt 0:00:05]} 26. Rd2 {[%emt 0:00:59]} Nc7 {[%emt 0:00:
00]} 27. Nf4 {[%emt 0:11:29]} Ne6 {[%emt 0:05:27]} 28. Nxe6 {[%emt 0:01:39]}
fxe6 {[%emt 0:00:23]} 29. Ra3 {[%emt 0:05:58]} Rf7 {[%emt 0:05:58]} 30. h4 {
[%emt 0:05:53]} Rfb7 {[%emt 0:01:17]} 31. Ra8+ {[%emt 0:00:58]} Kg7 {[%emt 0:
00:00]} 32. Rc8 {[%emt 0:01:33] An interesting draw. Weighted Error Value:
White=0.03 (flawless) /Black=0.02 (flawless)} 1/2-1/2

[Event "44th Chess Olympiad Open 2022"]
[Site "Chennai"]
[Date "2022.08.08"]
[Round "10.3"]
[White "Solak, Dragan"]
[Black "Shankland, Sam"]
[Result "1/2-1/2"]
[WhiteElo "2594"]
[BlackElo "2720"]
[Annotator "TA"]
[PlyCount "67"]
[EventDate "2022.??.??"]
[TimeControl "60"]

{[%evp 12,67,25,7,19,20,18,0,0,6,0,-13,1,0,8,17,33,0,19,23,40,18,30,35,56,51,
154,136,131,56,58,53,92,92,81,20,19,19,19,19,19,16,20,14,16,10,10,10,10,10,32,
13,21,21,21,21,21,-8]} 1. e4 {[%emt 0:00:05]} e5 {[%emt 0:00:13]} 2. Nf3 {
[%emt 0:00:04]} Nc6 {[%emt 0:00:04]} 3. Bb5 {[%emt 0:00:05]} a6 {[%emt 0:00:05]
} 4. Bxc6 {[%emt 0:00:07]} dxc6 {[%emt 0:00:04]} 5. O-O {[%emt 0:01:06]} f6 {
[%emt 0:00:07]} 6. d4 {[%emt 0:00:15]} exd4 {[%emt 0:00:06] 6...exd4 scores
better than 6...Bg4.} 7. Nxd4 {[%emt 0:00:10]} Qd6 {[%emt 0:00:05] C69: Ruy
Lopez: Exchange Variation with 5 0-0 f6.} 8. Be3 {[%emt 0:32:15]} Bd7 {[%emt 0:
00:00]} 9. Qe2 {[%emt 0:11:23] [#]} Nh6 $146 {[%emt 0:03:34]} ({Predecessor:} 
9... O-O-O 10. Nc3 Nh6 11. f3 f5 12. Rad1 Qg6 13. e5 Nf7 14. f4 Be7 {1-0 (24)
Groetz,H (2257)-Zojer,S (2074) Austria 2011}) 10. h3 {[%emt 0:07:08] Prevents
Ng4.} O-O-O {[%emt 0:03:29]} 11. Nc3 {[%emt 0:05:38]} Nf7 {[%emt 0:02:02]} 12.
Nb3 {[%emt 0:05:09]} Qe5 {[%emt 0:10:28] Prevents Nc5.} 13. f4 {[%emt 0:00:33]}
Qe8 {[%emt 0:00:04]} 14. Nc5 {[%emt 0:04:28]} Bxc5 {[%emt 0:08:22]} 15. Bxc5 {
[%emt 0:00:04]} Rg8 {[%emt 0:00:07]} 16. Rae1 {[%emt 0:03:28]} Kb8 {[%emt 0:00:
00]} 17. a4 {[%emt 0:06:34]} g5 {[%emt 0:12:35]} 18. e5 {[%emt 0:00:36] [#]
Strongly threatening e6.} gxf4 {[%emt 0:12:40]} (18... Bxh3 $14 19. exf6 (19.
gxh3 gxf4+ 20. Kh1 fxe5 $11) 19... Qxe2 20. Rxe2 gxf4) 19. exf6 {[%emt 0:03:13]
} Qxe2 {[%emt 0:02:27]} 20. Rxe2 {[%emt 0:06:03]} (20. Nxe2 $16 Rg5 21. b4 (21.
Be7 f3 $16)) 20... Bxh3 $1 $14 {[%emt 0:02:47][%cal Yf4f3] Threatens to win
with ...f3!} 21. Rxf4 {[%emt 0:00:30]} Bg4 {[%emt 0:00:23]} 22. Re7 {[%emt 0:
00:00] White is more active.} Bh5 {[%emt 0:00:06]} 23. Rd4 {[%emt 0:07:38]} (
23. Ne2 $16) 23... b6 $11 {[%emt 0:02:41]} 24. Rxd8+ {[%emt 0:00:12]} Rxd8 {
[%emt 0:00:15]} 25. Be3 {[%emt 0:01:48]} Kc8 $1 {[%emt 0:00:26]} 26. a5 {
[%emt 0:01:01]} bxa5 {[%emt 0:02:17]} 27. Ne4 {[%emt 0:01:02] [#] aiming for
Nc5.} Rd7 {[%emt 0:01:07]} 28. Nc5 {[%emt 0:01:36]} Rxe7 {[%emt 0:00:26]} 29.
fxe7 {[%emt 0:00:04] KBN-KBN} Nd6 {[%emt 0:00:31]} 30. Kf2 {[%emt 0:01:19]} a4
{[%emt 0:02:24]} 31. Nxa4 {[%emt 0:00:44]} Kd7 {[%emt 0:03:24] The position is
equal.} 32. Nc5+ {[%emt 0:00:04]} Kxe7 {[%emt 0:00:06]} 33. Nxa6 {[%emt 0:00:
00]} Bg6 {[%emt 0:01:05]} 34. Nxc7 {[%emt 0:00:31] Weighted Error Value:
White=0.12 (very precise) /Black=0.08 (flawless)} 1/2-1/2

[Event "44th Chess Olympiad Open 2022"]
[Site "Chennai"]
[Date "2022.08.08"]
[Round "10.4"]
[White "Vidit, Santosh Gujrathi"]
[Black "Tabatabaei, M. Amin"]
[Result "1-0"]
[WhiteElo "2714"]
[BlackElo "2664"]
[Annotator "TA"]
[PlyCount "103"]
[EventDate "2022.??.??"]
[TimeControl "60"]

{[%evp 14,103,0,0,0,0,0,0,0,0,0,0,-5,-9,6,5,2,10,10,10,18,11,14,24,20,-5,16,6,
6,5,5,0,18,12,16,8,8,8,13,10,8,10,66,58,75,76,63,44,39,43,54,36,36,36,119,119,
152,152,152,152,152,152,159,29,133,132,123,91,91,91,139,139,139,139,131,131,
131,131,131,131,131,131,29953,29956,29953,29958,29958,29957,11412,12363,5591,
5566]} 1. d4 {[%emt 0:00:28]} Nf6 {[%emt 0:00:27]} 2. c4 {[%emt 0:00:17]} e6 {
[%emt 0:00:11]} 3. Nf3 {[%emt 0:00:54]} d5 {[%emt 0:00:15]} 4. g3 {[%emt 0:00:
00]} dxc4 {[%emt 0:01:32]} 5. Bg2 {[%emt 0:00:08]} Nc6 {[%emt 0:02:56]} 6. O-O
{[%emt 0:05:21]} Rb8 {[%emt 0:00:00]} 7. Nc3 {[%emt 0:00:25]} b5 {[%emt 0:00:
00]} 8. Ne5 {[%emt 0:00:11]} Nxe5 {[%emt 0:00:00] E04: Open Catalan: 5 Nf3.} (
8... Nxd4 $2 9. e3 $18) 9. dxe5 {[%emt 0:00:05]} Nd7 {[%emt 0:00:00]} 10. Qc2 {
[%emt 0:00:06]} Bb7 {[%emt 0:01:36] Against Bc6. The position is equal.} 11.
Bxb7 {[%emt 0:00:18]} Rxb7 {[%emt 0:00:06]} 12. Rd1 {[%emt 0:13:49]} c6 {
[%emt 0:16:19]} 13. Ne4 {[%emt 0:19:03] [#]} Qc7 $146 {[%emt 0:05:41]} ({
Predecessor:} 13... Be7 14. b3 O-O 15. bxc4 Qa5 16. Nd6 Bxd6 17. exd6 b4 18.
Bb2 Qc5 19. Bd4 Qf5 {0-1 (32) Jordan,J (2182)-Langeveld,M (2155) LSS email 2019
}) 14. b3 {[%emt 0:23:31]} Nxe5 {[%emt 0:19:44]} (14... Qxe5 15. Bf4 Qf5 16.
bxc4 $16) 15. Bf4 {[%emt 0:06:43][%cal Yc1f4,Yf4e5,Ye5d4,Yd4e3]} Be7 $1 {
[%emt 0:04:23]} 16. bxc4 {[%emt 0:00:00]} bxc4 {[%emt 0:02:17]} 17. Qc3 {
[%emt 0:00:00]} f6 {[%emt 0:00:16] [#]} 18. Ng5 $1 {[%emt 0:00:00]} Bb4 {
[%emt 0:05:24]} (18... fxg5 19. Bxe5 Qb6 20. Bxg7 $16) 19. Qd4 {[%emt 0:00:00]
Hoping for Bxe5.} (19. Qe3 $5 {[%cal Rg5e6]}) 19... Qb6 {[%emt 0:21:28] White
must now prevent ...Qxd4.} (19... c5 $2 20. Qe4 fxg5 21. Bxe5 $18) (19... Ke7 {
keeps more tension.} 20. Rac1 h6 21. Bxe5 Qxe5 22. Qxe5 fxe5 23. Nf3 Bd6) 20.
Bxe5 {[%emt 0:03:26][%cal Yd4c4]} Qxd4 {[%emt 0:00:00]} (20... fxe5 $2 21. Qe4
g6 22. Nxe6 $18) 21. Bxd4 {[%emt 0:00:05]} (21. Rxd4 Bc3 22. Ne4 Bxa1 $17)
21... fxg5 {[%emt 0:00:59]} 22. Rac1 {[%emt 0:00:15]} Kf7 {[%emt 0:00:00]
aiming for ...Rd8.} 23. Rxc4 {[%emt 0:00:11]} Be7 {[%emt 0:00:00][%cal Yc6c5]}
24. Rxc6 {[%emt 0:01:37]} Rd8 {[%emt 0:00:00] ...e5 is the strong threat.} 25.
Rd3 $1 {[%emt 0:00:13]} Bf6 {[%emt 0:03:57]} 26. Be3 {[%emt 0:07:57]} Rxd3 {
[%emt 0:00:17]} 27. exd3 $11 {[%emt 0:00:01] Endgame KRB-KRB} Rd7 {[%emt 0:00:
45]} (27... Bd8 $1 $11) 28. Ra6 $1 $14 {[%emt 0:02:44]} Rxd3 {[%emt 0:00:00]}
29. Rxa7+ {[%emt 0:00:06]} Kg6 {[%emt 0:00:00]} 30. Ra4 {[%emt 0:02:58]} h5 {
[%emt 0:04:24]} 31. h3 {[%emt 0:00:12]} h4 {[%emt 0:01:20]} 32. g4 {[%emt 0:01:
34]} (32. Ra6 hxg3 33. Rxe6 gxf2+ 34. Kxf2 Ra3 $15) 32... Be5 {[%emt 0:01:18]
[%cal Ye5f4]} 33. Re4 {[%emt 0:03:21]} Bf4 {[%emt 0:06:44]} ({Black should try
} 33... Kf6 $14) 34. Rxe6+ $16 {[%emt 0:08:12]} (34. Bxf4 $6 gxf4 35. Kh2 (35.
Rxe6+ Kf7 $11) 35... Ra3 $14) 34... Kf7 {[%emt 0:01:04]} 35. Re4 {[%emt 0:00:
10]} Ra3 {[%emt 0:00:04]} 36. Bxf4 {[%emt 0:01:51]} gxf4 {[%emt 0:00:01]} 37.
Rxf4+ {[%emt 0:00:05] KR-KR} Kg8 {[%emt 0:00:28]} 38. g5 {[%emt 0:01:27]} (38.
Rf5 $1 $16) 38... Rxh3 {[%emt 0:00:05]} (38... Kh7 $1 $11 {keeps the balance.})
39. a4 {[%emt 0:00:50]} Kh7 {[%emt 0:00:18]} 40. f3 {[%emt 0:01:13]} Rg3+ {
[%emt 0:02:55]} (40... Kg6 $2 41. a5 $18) 41. Kf2 {[%emt 0:00:40]} Rh3 {
[%emt 0:02:24]} (41... Rxg5 $142 42. Rxh4+ Kg8) 42. g6+ $1 {[%emt 0:15:03]} ({
Much weaker is} 42. a5 $6 Rh2+ 43. Kf1 Ra2 $11) 42... Kh6 {[%emt 0:03:39]} 43.
Kg2 {[%emt 0:00:20]} Rg3+ {[%emt 0:00:04]} 44. Kh2 {[%emt 0:00:06]} Kh5 {
[%emt 0:00:15]} (44... Kxg6 45. Rg4+ Kf7 46. Rxg3 hxg3+ 47. Kxg3 Ke6 48. Kg4
Kd5 49. Kf5) 45. a5 {[%emt 0:00:55][%cal Ya4a5,Ya5a6,Ya6a7] White wants to
mate with a6.} Rxg6 {[%emt 0:02:25]} 46. Rf5+ {[%emt 0:01:11]} Kh6 {[%emt 0:00:
02] [#]} (46... Rg5 {is a self mate.} 47. Rxg5+ Kxg5 48. a6 Kf4 49. a7 Kxf3 50.
a8=Q+ Kf4 51. Qd5) 47. Rb5 $1 {[%emt 0:01:46] White threatens Rb6 and mate.}
Rg3 $2 {[%emt 0:01:08] [#] This costs Black the game.} (47... Kh7 $16) 48. Rb3
$1 {[%emt 0:02:06]} ({And not} 48. a6 Rxf3 49. Ra5 Rf8 $11) 48... Rg5 {[%emt 0:
00:04]} 49. Ra3 {[%emt 0:00:13]} Rc5 {[%emt 0:00:22]} 50. a6 {[%emt 0:01:02]}
Rc8 {[%emt 0:00:06]} 51. a7 {[%emt 0:01:03]} Ra8 {[%emt 0:00:02]} 52. f4 {
[%emt 0:02:37] Weighted Error Value: White=0.08 (flawless) /Black=0.19 (very
precise)} 1-0